bitfinex/quotes_BTCUSD_20260125
["timestamp","ask_amount","ask_price","bid_price","bid_amount"]
[1769361463768,0.10221715,87914.0,87897.0,1.13430612]
[1769361464111,0.01137475,87914.0,87897.0,1.13430612]
[1769361464541,0.0908424,87915.0,87897.0,1.13430612]
[1769361465505,0.0908424,87915.0,87897.0,1.33420086]
[1769361465716,0.0908424,87915.0,87897.0,1.13430612]
[1769361465950,0.0908424,87915.0,87897.0,1.33420086]
[1769361466162,0.0908424,87915.0,87898.0,1.13430612]
[1769361466362,1.23349799,87916.0,87898.0,1.13430612]
[1769361466725,0.0908424,87917.0,87898.0,1.13430612]
[1769361466926,0.0908424,87919.0,87902.0,1.13430612]
[1769361467226,0.10221611,87922.0,87904.0,1.13430612]
[1769361467424,0.01137371,87922.0,87904.0,1.13430612]
[1769361467653,0.28648374,87923.0,87904.0,1.13430612]
[1769361467654,0.27511016,87923.0,87904.0,1.13430612]
[1769361467863,0.27511016,87923.0,87904.0,1.33420086]
[1769361468081,0.18426776,87923.0,87904.0,1.33420086]
[1769361468721,0.18426776,87923.0,87906.0,1.13430612]
[1769361468953,0.0908424,87926.0,87908.0,1.13430612]
[1769361469395,0.28648323,87927.0,87908.0,1.13430612]
[1769361469615,0.18426776,87926.0,87908.0,1.13430612]
[1769361470267,0.0908424,87924.0,87908.0,1.13430612]
[1769361471187,0.27511016,87925.0,87908.0,1.13430612]
[1769361471587,0.27511016,87925.0,87908.0,1.33420086]
[1769361472200,0.11371906,87924.0,87908.0,1.33420086]
[1769361472413,0.11371906,87923.0,87908.0,1.33420086]
[1769361472625,0.11371906,87922.0,87908.0,1.33420086]
[1769361472831,0.11371906,87921.0,87908.0,1.33420086]
[1769361473049,0.0908424,87923.0,87908.0,1.33420086]
[1769361473050,0.11371906,87920.0,87908.0,1.33420086]
[1769361473268,0.11371906,87919.0,87908.0,1.33420086]
[1769361473506,0.11371906,87918.0,87908.0,1.33420086]
[1769361473721,0.11371906,87917.0,87908.0,1.33420086]
[1769361473922,0.11371906,87916.0,87908.0,1.33420086]
[1769361474133,0.11371906,87915.0,87908.0,1.33420086]
[1769361474283,0.18426776,87925.0,87908.0,1.33420086]
[1769361474284,0.11371906,87914.0,87908.0,1.33420086]
[1769361474496,0.11371906,87913.0,87908.0,0.19989474]
[1769361474663,0.11371906,87912.0,87908.0,0.19989474]
[1769361474898,0.11371906,87911.0,87908.0,1.13430612]
[1769361475096,0.0908424,87924.0,87908.0,1.13430612]
[1769361475464,0.11369491,87923.0,87908.0,1.33420086]
[1769361475610,0.11369491,87922.0,87908.0,1.33420086]
[1769361475822,0.11369491,87921.0,87908.0,1.33420086]
[1769361476045,0.11369491,87920.0,87908.0,1.33420086]
[1769361476223,0.11369491,87919.0,87908.0,1.33420086]
[1769361476419,0.11369491,87918.0,87901.0,0.19989474]
[1769361476730,0.11369491,87917.0,87901.0,1.33420086]
[1769361476927,0.11369491,87916.0,87903.0,1.13430612]
[1769361477132,0.11369491,87915.0,87903.0,1.13430612]
[1769361477367,0.11369491,87914.0,87903.0,1.13430612]
[1769361477681,0.11369491,87913.0,87903.0,1.13430612]
[1769361477823,1.14265559,87920.0,87903.0,1.13430612]
[1769361478028,0.11366855,87919.0,87903.0,1.13430612]
[1769361478227,0.11366855,87919.0,87903.0,1.13414816]
[1769361478530,0.11366855,87918.0,87903.0,1.13414816]
[1769361478730,0.11366855,87917.0,87903.0,1.13414816]
[1769361478931,0.11366855,87916.0,87903.0,1.13414816]
[1769361479130,0.11366855,87915.0,87903.0,1.13414816]
[1769361479332,0.11366855,87914.0,87903.0,1.13414816]
[1769361479532,0.11366855,87913.0,87903.0,1.13414816]
[1769361479852,0.18426776,87921.0,87903.0,1.13414816]
[1769361480169,0.11365987,87920.0,87903.0,1.13414816]
[1769361480376,0.11365987,87919.0,87903.0,1.13414816]
[1769361480580,0.11365987,87918.0,87903.0,1.13414816]
[1769361480800,0.11365987,87917.0,87903.0,1.13414816]
[1769361480943,0.11365987,87916.0,87903.0,1.13414816]
[1769361481161,0.11365987,87915.0,87903.0,1.13414816]
[1769361481364,0.11365987,87914.0,87903.0,1.13414816]
[1769361481638,0.11365987,87913.0,87903.0,1.13414816]
[1769361481871,0.18426776,87921.0,87903.0,1.13414816]
[1769361482098,0.11366156,87920.0,87903.0,1.13414816]
[1769361482370,0.11366156,87919.0,87903.0,1.13414816]
[1769361482567,0.11366156,87918.0,87903.0,1.13414816]
[1769361482841,0.11366156,87917.0,87903.0,1.13414816]
[1769361483068,0.11366156,87916.0,87903.0,1.13414816]
[1769361483189,0.11366156,87915.0,87903.0,1.13414816]
[1769361483394,0.18426776,87921.0,87903.0,1.13414816]
[1769361483395,0.11366156,87914.0,87903.0,1.13414816]
[1769361483634,0.18426776,87921.0,87903.0,1.13414816]
[1769361483635,0.11366156,87913.0,87903.0,1.13414816]
[1769361483835,0.11366156,87912.0,87903.0,1.13414816]
[1769361484034,0.18426776,87921.0,87903.0,1.13414816]
[1769361484281,0.11367048,87920.0,87903.0,1.13414816]
[1769361484476,0.11367048,87919.0,87903.0,1.13414816]
[1769361484686,0.11367048,87918.0,87903.0,1.13414816]
[1769361484898,0.11367048,87917.0,87903.0,1.13414816]
[1769361485175,0.11367048,87916.0,87903.0,1.31178796]
[1769361485348,0.11367048,87915.0,87903.0,1.31178796]
[1769361485551,0.01137307,87927.0,87900.0,0.4717392]
[1769361485552,0.0908424,87935.0,87907.0,0.1776398]
[1769361485780,1.0543028,87935.0,87912.0,0.1776398]
[1769361486001,0.17414748,87933.0,87913.0,1.27804207]
[1769361487178,0.17414748,87933.0,87914.0,1.10324207]
[1769361487386,0.17414748,87933.0,87913.0,0.3524398]
[1769361487387,0.001,87935.0,87920.0,0.2968992]
[1769361487589,0.001,87935.0,87921.0,1.10324207]
[1769361487986,1.23982166,87940.0,87921.0,1.10324207]
[1769361487987,0.17414748,87939.0,87921.0,1.10324207]
[1769361488197,1.0543028,87938.0,87921.0,1.10324207]
[1769361488417,0.17414748,87937.0,87921.0,1.10324207]
[1769361488621,0.17414748,87937.0,87921.0,1.10328934]
[1769361490703,0.17414748,87937.0,87921.0,4.727e-05]
[1769361490910,0.18551951,87935.0,87921.0,4.727e-05]
[1769361491139,0.17414748,87935.0,87921.0,4.727e-05]
[1769361492145,0.17414748,87935.0,87910.0,0.2968992]
[1769361492146,0.0113732,87926.0,87911.0,1.28088187]
[1769361492384,0.0113732,87926.0,87900.0,0.2968992]
[1769361492385,8.052e-05,87926.0,87913.0,1.10324207]
[1769361493774,8.052e-05,87926.0,87913.0,1.28088187]
[1769361494284,0.81976328,87931.0,87913.0,1.28088187]
[1769361494502,0.17414748,87935.0,87914.0,0.1776398]
[1769361494641,0.17414748,87935.0,87915.0,1.28088187]
[1769361494847,0.99625616,87935.0,87916.0,1.08146992]
[1769361495073,0.17414748,87935.0,87921.0,1.08146992]
[1769361495515,0.17269476,87941.0,87921.0,1.26254396]
[1769361495700,0.17269476,87941.0,87922.0,1.08146992]
[1769361496030,0.17269476,87940.0,87922.0,1.08146992]
[1769361496638,0.17269476,87940.0,87922.0,1.08131197]
[1769361496845,0.82226505,87939.0,87922.0,1.08131197]
[1769361497049,0.17269476,87938.0,87922.0,1.08131197]
[1769361497689,0.11362804,87937.0,87922.0,1.08131197]
[1769361498376,0.17269476,87937.0,87922.0,1.08131197]
[1769361499268,0.000134,87942.0,87927.0,0.2968992]
[1769361499700,0.000134,87942.0,87924.0,0.17870638]
[1769361499931,0.28642829,87942.0,87925.0,0.0011374]
[1769361500189,0.28642829,87942.0,87925.0,1.08260732]
[1769361500190,0.17282876,87942.0,87925.0,1.08260732]
[1769361500408,0.17282876,87942.0,87925.0,1.08146992]
[1769361500619,0.17282876,87942.0,87926.0,0.00054791]
[1769361500833,0.17282876,87942.0,87930.0,0.2968992]
[1769361501021,0.000134,87942.0,87930.0,0.2968992]
[1769361501447,0.000134,87942.0,87931.0,1.08146992]
[1769361502671,0.000134,87942.0,87924.0,0.17854843]
[1769361503015,0.17282876,87942.0,87925.0,1.08146992]
[1769361503445,0.01137048,87947.0,87925.0,1.08146992]
[1769361503636,1.25114893,87945.0,87925.0,1.08146992]
[1769361503783,1.25114893,87945.0,87925.0,1.26381271]
[1769361503989,1.0837247,87945.0,87925.0,1.08131212]
[1769361504239,0.11354129,87944.0,87926.0,0.18234279]
[1769361504421,1.19215168,87944.0,87927.0,0.18359842]
[1769361504604,1.07861039,87944.0,87927.0,0.18359842]
[1769361505998,1.07861039,87944.0,87928.0,0.18218504]
[1769361506215,0.00110486,87928.0,87924.0,1.08146992]
[1769361506442,0.00110486,87928.0,87923.0,0.18234279]
[1769361506694,0.00110486,87928.0,87926.0,1.08146992]
[1769361506942,0.00110486,87928.0,87927.0,1.26381271]
[1769361507157,0.00110486,87928.0,87927.0,0.18234279]
[1769361508083,0.00110486,87928.0,87927.0,0.18202715]
[1769361508661,0.00110486,87928.0,87927.0,0.18171155]
[1769361512208,1.07861039,87943.0,87927.0,0.18171155]
[1769361512368,1.07861039,87941.0,87927.0,0.18171155]
[1769361513960,0.1136099,87940.0,87927.0,0.18171155]
[1769361514699,0.17746501,87938.0,87923.0,0.0064861]
[1769361514943,1.07861039,87934.0,87923.0,0.04552]
[1769361515147,1.2560754,87934.0,87923.0,0.04552]
[1769361516192,0.00111827,87933.0,87923.0,0.0452045]
[1769361516407,0.00111827,87933.0,87900.0,0.04552]
[1769361516408,0.17746501,87921.0,87900.0,0.04552]
[1769361516581,0.8724188,87918.0,87900.0,0.04552]
[1769361516786,0.8724188,87918.0,87900.0,0.34249972]
[1769361516928,1.04988381,87917.0,87900.0,0.34249972]
[1769361518326,0.8724188,87917.0,87900.0,0.04560052]
[1769361518539,0.00111827,87914.0,87900.0,0.04560052]
[1769361519396,0.87233909,87909.0,87883.0,1.05892465]
[1769361519598,0.17746501,87904.0,87883.0,1.05892465]
[1769361519796,0.01137565,87907.0,87883.0,1.05892465]
[1769361519797,1.0498041,87901.0,87883.0,1.05892465]
[1769361520161,1.0498041,87901.0,87884.0,0.00080628]
[1769361521120,1.0498041,87901.0,87895.0,0.00015639]
[1769361522670,0.17476,87908.0,87895.0,0.00015639]
[1769361522671,0.87233909,87899.0,87895.0,0.00015639]
[1769361522864,1.0498041,87899.0,87895.0,0.00015639]
[1769361523267,1.0498041,87899.0,87884.0,0.00272899]
[1769361523596,0.17758856,87899.0,87884.0,0.00272899]
[1769361524216,0.00012355,87899.0,87889.0,0.2968992]
[1769361524741,0.13646366,87919.0,87892.0,0.16971637]
[1769361524863,0.1748,87911.0,87900.0,0.16971637]
[1769361525073,0.1748,87911.0,87898.0,0.2968992]
[1769361525074,0.1748,87911.0,87901.0,1.22864102]
[1769361525272,0.1748,87911.0,87900.0,0.2968992]
[1769361525494,0.87233909,87913.0,87900.0,0.2968992]
[1769361525759,0.87233909,87913.0,87897.0,1.05892465]
[1769361525925,0.1748,87918.0,87901.0,1.22864102]
[1769361526141,0.00111827,87910.0,87901.0,1.22864102]
[1769361526340,0.00111827,87910.0,87901.0,1.22270809]
[1769361526726,0.35226501,87921.0,87903.0,1.05892465]
[1769361526933,0.35226501,87921.0,87906.0,0.16971637]
[1769361527364,0.0908424,87933.0,87908.0,0.16971637]
[1769361527556,0.1134046,87932.0,87920.0,0.2968992]
[1769361527735,0.22032,87938.0,87922.0,0.16971637]
[1769361527946,0.11339562,87937.0,87922.0,0.1653436]
[1769361528149,0.11339562,87936.0,87910.0,0.1748]
[1769361528347,0.0003141,87942.0,87930.0,1.22864102]
[1769361528548,0.001,87933.0,87930.0,1.05892465]
[1769361528748,0.00114177,87933.0,87930.0,1.22864102]
[1769361529937,0.00014177,87933.0,87924.0,0.34451637]
[1769361531043,0.00014177,87933.0,87924.0,0.1748]
[1769361533529,0.00014177,87933.0,86210.0,5.076e-05]
[1769361533530,0.87344618,87923.0,87903.0,0.16971637]
[1769361533771,0.87344618,87923.0,87904.0,0.16971637]
[1769361533957,0.87344618,87923.0,87905.0,0.0030258]
[1769361535878,0.87344618,87923.0,87905.0,0.17274217]
[1769361536354,0.17746501,87922.0,87905.0,0.17274217]
[1769361536573,1.05091119,87921.0,87905.0,0.0030258]
[1769361536773,1.05091119,87921.0,87904.0,0.0030258]
[1769361536992,1.05091119,87920.0,87904.0,0.0030258]
[1769361538419,0.17746501,87920.0,87904.0,0.0030258]
[1769361538620,0.17746501,87920.0,87904.0,1.23166682]
[1769361538829,0.17746501,87920.0,87904.0,1.05892465]
[1769361538967,0.87354288,87924.0,87910.0,0.29676377]
[1769361539791,9.67e-05,87924.0,87910.0,0.29660603]
[1769361540639,9.67e-05,87924.0,87914.0,1.05892465]
[1769361540841,9.67e-05,87924.0,87915.0,0.16971637]
[1769361542625,0.79107093,87931.0,87915.0,0.16971637]
[1769361542978,0.79107093,87931.0,87915.0,0.16908424]
[1769361543589,0.00014177,87933.0,87916.0,1.13981635]
[1769361543789,0.79189468,87932.0,87916.0,1.13981635]
[1769361544391,0.00014177,87933.0,87917.0,0.17436238]
[1769361544593,0.79203645,87933.0,87917.0,0.17436238]
[1769361545532,0.00014177,87933.0,87918.0,1.31417873]
[1769361546265,0.00014177,87933.0,87910.0,0.29660603]
[1769361546266,0.79782761,87932.0,87912.0,1.13981635]
[1769361546468,0.79782761,87932.0,87912.0,1.31417873]
[1769361546700,0.97605774,87932.0,87912.0,1.31417873]
[1769361548932,0.97605774,87932.0,87913.0,0.17436238]
[1769361551941,0.80326723,87931.0,87913.0,0.17436238]
[1769361552105,0.79189468,87931.0,87913.0,0.17549847]
[1769361553167,0.79189468,87931.0,87903.0,0.17476]
[1769361553168,0.01,87913.0,87903.0,0.17476]
[1769361553500,0.79076995,87912.0,87903.0,0.17476]
[1769361553617,0.17823013,87911.0,87903.0,0.17476]
[1769361553821,0.01137436,87917.0,87902.0,0.04552]
[1769361553822,0.96900008,87910.0,87902.0,0.04552]
[1769361555420,0.96900008,87910.0,87887.0,0.01162504]
[1769361555421,0.01137643,87901.0,87887.0,0.0002468]
[1769361555630,0.01137643,87901.0,87871.0,0.00113759]
[1769361555631,0.79077242,87887.0,87871.0,0.00113759]
[1769361555860,0.79052562,87887.0,87874.0,0.00113755]
[1769361556058,0.79052562,87887.0,87875.0,0.00632181]
[1769361556397,0.79052562,87887.0,87871.0,1.15681383]
[1769361556621,0.01137772,87891.0,87877.0,0.00067303]
[1769361556622,0.79052562,87884.0,87877.0,0.00067303]
[1769361557495,0.16191902,87885.0,87877.0,0.00067303]
[1769361557707,0.92698928,87889.0,87877.0,0.00067303]
[1769361557923,0.79052562,87889.0,87877.0,0.00067303]
[1769361559992,0.79052562,87887.0,87877.0,0.00067303]
[1769361561479,0.79052562,87883.0,87877.0,0.00067303]
[1769361563613,0.78985932,87881.0,87873.0,0.0002468]
[1769361563835,0.78985932,87881.0,87873.0,0.00038862]
[1769361564569,0.16191902,87882.0,87873.0,0.00038862]
[1769361565312,0.78985932,87886.0,87873.0,0.00038862]
[1769361568313,0.78985932,87884.0,87873.0,0.00038862]
[1769361568701,0.16191902,87880.0,87873.0,0.00038862]
[1769361568902,0.78985932,87879.0,87873.0,0.00038862]
[1769361571076,0.78955778,87879.0,87873.0,0.00038862]
[1769361573114,0.78956079,87887.0,87873.0,0.00038862]
[1769361573322,0.78956079,87885.0,87873.0,0.00038862]
[1769361573756,0.78956079,87885.0,87864.0,0.11024]
[1769361573757,0.01137915,87880.0,87864.0,0.11024]
[1769361573968,0.78917606,87880.0,87864.0,0.11036355]
[1769361574172,0.80055521,87880.0,87864.0,0.11036355]
[1769361574326,0.78917606,87880.0,87864.0,0.11036355]
[1769361574996,0.60758732,87880.0,87864.0,0.11036355]
[1769361575475,0.15734364,87879.0,87864.0,0.11036355]
[1769361575909,0.60940321,87878.0,87864.0,0.11036355]
[1769361576514,0.15734364,87879.0,87864.0,0.11036355]
[1769361576717,0.60940321,87878.0,87864.0,0.11036355]
[1769361576924,0.76674685,87878.0,87864.0,0.11036355]
[1769361577473,0.60940321,87877.0,87864.0,0.11036355]
[1769361578693,0.13646366,87889.0,87864.0,0.11036355]
[1769361578909,0.60940321,87886.0,87864.0,0.26740915]
[1769361579107,0.76674685,87884.0,87864.0,0.26740915]
[1769361579316,0.60940321,87883.0,87864.0,0.26740915]
[1769361580113,0.39575143,87883.0,87864.0,0.26740915]
[1769361580417,0.39575143,87883.0,87864.0,1.31269355]
[1769361580625,0.39575143,87883.0,87865.0,1.20233]
[1769361582312,0.15734364,87896.0,87872.0,1.0452844]
[1769361582533,0.15734364,87896.0,87875.0,0.1570456]
[1769361582534,0.13646366,87889.0,87875.0,0.1570456]
[1769361583152,0.29676377,87900.0,87875.0,0.1570456]
[1769361583359,0.11362781,87899.0,87881.0,1.0452844]
[1769361583588,0.11362781,87898.0,87885.0,1.0452844]
[1769361583803,0.11362781,87897.0,87886.0,0.1570456]
[1769361584024,0.11362781,87896.0,87886.0,0.1570456]
[1769361584223,0.11362781,87895.0,87886.0,0.1570456]
[1769361584428,0.11362781,87894.0,87886.0,0.1570456]
[1769361584659,0.5343516,87902.0,87886.0,0.1570456]
[1769361584865,0.11368607,87901.0,87886.0,0.1570456]
[1769361585156,0.11368607,87900.0,87886.0,0.1570456]
[1769361585357,0.11368607,87899.0,87886.0,0.1570456]
[1769361585554,0.11368607,87898.0,87886.0,0.1570456]
[1769361585755,0.11368607,87897.0,87886.0,1.20233]
[1769361586136,0.11368607,87896.0,87886.0,1.20233]
[1769361586304,0.11368607,87895.0,87886.0,1.20233]
[1769361586504,0.11368607,87894.0,87886.0,1.20233]
[1769361586707,0.39788794,87902.0,87886.0,1.20233]
[1769361586914,0.11377322,87901.0,87886.0,1.20233]
[1769361587780,0.11377322,87901.0,87893.0,1.0452844]
[1769361587931,0.11377322,87900.0,87894.0,0.1570456]
[1769361588111,0.0002468,87910.0,87894.0,0.1570456]
[1769361588552,0.11397552,87910.0,87894.0,0.1570456]
[1769361589068,0.11444847,87910.0,87894.0,0.1570456]
[1769361589408,0.11372872,87909.0,87894.0,0.1570456]
[1769361590102,0.11372872,87908.0,87894.0,0.1570456]
[1769361590307,0.11372872,87907.0,87894.0,0.1570456]
[1769361590506,0.11372872,87906.0,87894.0,0.1570456]
[1769361590823,0.00071975,87910.0,87894.0,0.1570456]
[1769361590824,0.11372872,87905.0,87894.0,0.1570456]
[1769361591028,0.11372872,87904.0,87894.0,0.1570456]
[1769361591211,0.11372872,87903.0,87894.0,0.1570456]
[1769361591411,0.11372872,87902.0,87894.0,0.1570456]
[1769361591620,0.00071975,87910.0,87894.0,0.1570456]
[1769361591621,0.11372872,87901.0,87894.0,0.1570456]
[1769361591812,0.11366407,87900.0,87887.0,1.0452844]
[1769361592011,0.11366407,87899.0,87889.0,1.20233]
[1769361592245,0.39788794,87907.0,87889.0,1.20233]
[1769361592468,0.11365671,87906.0,87889.0,1.20233]
[1769361592591,0.11365671,87906.0,87890.0,0.1570456]
[1769361592793,0.11365671,87906.0,87891.0,1.20233]
[1769361593064,0.11365671,87905.0,87892.0,0.1570456]
[1769361593267,0.11365671,87904.0,87892.0,1.20233]
[1769361593480,0.11365671,87908.0,87892.0,1.20233]
[1769361593700,0.11365671,87907.0,87892.0,1.0452844]
[1769361593895,0.00071975,87910.0,87901.0,1.0452844]
[1769361594031,0.00071975,87910.0,87903.0,1.20233]
[1769361594231,0.00055515,87910.0,87903.0,1.20233]
[1769361594587,0.17484,87928.0,87898.0,0.29697384]
[1769361594588,0.85298602,87930.0,87902.0,0.1570456]
[1769361594875,0.85298602,87930.0,87898.0,0.30835066]
[1769361594876,0.16871658,87928.0,87906.0,0.1570456]
[1769361595074,0.55840167,87927.0,87907.0,1.20233]
[1769361595276,0.55600987,87927.0,87907.0,1.20233]
[1769361596672,0.55600987,87927.0,87908.0,0.1570456]
[1769361597037,0.55600987,87927.0,87907.0,1.0452844]
[1769361597038,0.0003728,87930.0,87914.0,0.1570456]
[1769361597246,0.0003728,87930.0,87915.0,1.0452844]
[1769361597474,0.0003728,87930.0,87915.0,1.20233]
[1769361598436,0.5673819,87935.0,87900.0,0.05688249]
[1769361598437,0.000231,87957.0,87930.0,1.0452844]
[1769361598627,0.20466424,87980.0,87930.0,1.0452844]
[1769361598628,0.04552,87971.0,87945.0,0.29697384]
[1769361598995,0.04552,87971.0,87951.0,0.1570456]
[1769361598996,0.05704,87970.0,87951.0,0.1570456]
[1769361599196,0.47249638,87970.0,87951.0,0.1570456]
[1769361601157,0.47249638,87970.0,87951.0,1.0452844]
[1769361601358,0.41545638,87968.0,87951.0,0.1570456]
[1769361602094,0.41545638,87967.0,87951.0,0.21929855]
[1769361602675,0.13646366,87979.0,87954.0,0.01136957]
[1769361602832,0.22032,87978.0,87956.0,1.0452844]
[1769361603035,0.22032,87978.0,87959.0,0.16641076]
[1769361603274,0.41545638,87977.0,87959.0,0.16641076]
[1769361603707,0.13646366,87974.0,87959.0,0.16641076]
[1769361603907,0.13646366,87976.0,87959.0,0.16641076]
[1769361604112,0.55192004,87976.0,87959.0,0.16641076]
[1769361605238,0.13646366,87976.0,87959.0,0.16641076]
[1769361605397,0.41545638,87975.0,87959.0,0.16641076]
[1769361605981,0.22028,87974.0,87959.0,0.16641076]
[1769361606184,0.22028,87974.0,87960.0,1.15928859]
[1769361606385,0.22028,87974.0,87961.0,0.16641076]
[1769361606632,0.13646366,87980.0,87961.0,0.16641076]
[1769361606868,0.22028,87973.0,87961.0,0.16641076]
[1769361607003,0.22028,87973.0,87962.0,0.16641076]
[1769361609063,0.05133107,87973.0,87962.0,0.16641076]
[1769361609713,0.05133107,87973.0,87949.0,0.16641076]
[1769361609714,0.01,87962.0,87949.0,0.16641076]
[1769361610021,0.13646366,87966.0,87945.0,1.15943036]
[1769361610022,0.41545638,87963.0,87945.0,1.15943036]
[1769361610155,0.16474883,87963.0,87945.0,0.00014177]
[1769361610356,0.16474883,87963.0,87945.0,0.06250521]
[1769361610357,0.41545638,87962.0,87945.0,0.06250521]
[1769361610999,0.16474883,87963.0,87946.0,1.15928859]
[1769361611227,0.16474883,87963.0,87946.0,1.32569935]
[1769361612061,0.58020521,87963.0,87946.0,1.32569935]
[1769361613787,0.58020521,87963.0,87946.0,1.33706996]
[1769361613964,0.58020521,87963.0,87947.0,0.01137048]
[1769361614116,0.58020521,87963.0,87947.0,0.01384633]
[1769361614321,0.01176492,87990.0,87953.0,0.0113697]
[1769361614529,0.13646366,87974.0,87960.0,1.15928859]
[1769361614723,0.13646366,87974.0,87961.0,0.16641076]
[1769361615995,0.41545638,87973.0,87961.0,0.16641076]
[1769361616668,0.0004,87990.0,87970.0,1.06294901]
[1769361616669,0.16035115,87989.0,87970.0,1.06294901]
[1769361616879,0.0004,87990.0,87976.0,0.15744865]
[1769361617006,0.22024,87986.0,87981.0,0.15744865]
[1769361617209,0.22024,87986.0,87974.0,0.01136699]
[1769361617210,0.22024,87986.0,87983.0,0.15744865]
[1769361617419,0.22024,87986.0,87970.0,0.37071281]
[1769361617420,0.16035115,88018.0,87988.0,0.01136518]
[1769361617624,0.00593293,88013.0,87991.0,0.01136479]
[1769361617826,1.12741059,88010.0,87992.0,0.16881331]
[1769361618051,1.12788336,88010.0,87995.0,0.01136428]
[1769361618250,1.12788336,88010.0,87997.0,0.01136402]
[1769361618449,1.12788336,88010.0,87995.0,0.0681851]
[1769361618450,1.12788336,88010.0,87995.0,0.01136428]
[1769361618710,1.12788336,88010.0,87994.0,0.06818641]
[1769361618711,0.00047277,88010.0,87996.0,1.22039766]
[1769361618860,1.12741059,88009.0,87996.0,0.15744865]
[1769361620160,0.00047277,88010.0,87996.0,0.15744865]
[1769361620293,0.17472,88009.0,87996.0,1.06294901]
[1769361620497,0.17472,88009.0,87997.0,0.15744865]
[1769361622141,0.17468,88008.0,87997.0,0.15744865]
[1769361626420,0.17468,88008.0,87997.0,0.15734865]
[1769361629418,0.17468,88008.0,87997.0,1.06294901]
[1769361629632,0.17468,88008.0,87998.0,0.15744865]
[1769361630801,0.17468,88008.0,87998.0,0.0001]
[1769361631003,1.30209059,88008.0,87990.0,0.15744865]
[1769361631230,0.16035115,88007.0,87983.0,0.06129257]
[1769361631390,0.16035115,88003.0,87978.0,0.16881512]
[1769361631598,1.12741059,88000.0,87979.0,0.16881499]
[1769361631799,1.12741059,88000.0,87981.0,0.15744865]
[1769361631800,0.17464,87999.0,87981.0,0.15744865]
[1769361632211,0.17464,87999.0,87978.0,0.06357001]
[1769361632212,1.12741059,87996.0,87966.0,0.01136802]
[1769361632429,0.16035115,87993.0,87968.0,0.01136777]
[1769361632667,0.16035115,87989.0,87969.0,0.01136764]
[1769361632869,1.28776174,87989.0,87970.0,0.15744865]
[1769361633073,1.28776174,87989.0,87971.0,1.12843951]
[1769361633318,1.28776174,87989.0,87967.0,0.056839]
[1769361633319,0.14179499,87988.0,87964.0,1.12843951]
[1769361633517,0.14179499,87984.0,87965.0,0.14537244]
[1769361633690,0.31643499,87983.0,87965.0,0.14537244]
[1769361634140,0.31643499,87983.0,87965.0,1.27381195]
[1769361635245,0.31643499,87983.0,87965.0,0.14537244]
[1769361635246,1.2173696,87982.0,87965.0,0.14537244]
[1769361635652,1.25021461,87981.0,87965.0,0.14537244]
[1769361635855,1.07557461,87979.0,87955.0,0.14537244]
[1769361636055,1.07557461,87975.0,87955.0,1.27381195]
[1769361636282,1.2173696,87975.0,87955.0,1.27381195]
[1769361636403,1.2173696,87975.0,87955.0,1.12843951]
[1769361636606,1.2173696,87975.0,87956.0,1.27381195]
[1769361638379,0.14179499,87975.0,87956.0,1.27381195]
[1769361638553,0.14179499,87975.0,87957.0,1.27381195]
[1769361638884,1.2173696,87973.0,87957.0,0.14537244]
[1769361640705,1.18322282,87973.0,87957.0,0.14537244]
[1769361640864,1.2173696,87980.0,87960.0,0.0113688]
[1769361641046,1.2173696,87980.0,87960.0,0.14537244]
[1769361641234,1.2173696,87980.0,87960.0,0.15674124]
[1769361641465,1.2173696,87980.0,87961.0,0.01136867]
[1769361641678,1.2173696,87980.0,87960.0,0.15674124]
[1769361642087,1.2173696,87980.0,87961.0,0.15674111]
[1769361642866,1.2173696,87980.0,87961.0,0.14537244]
[1769361643863,1.07557461,87980.0,87961.0,0.14537244]
[1769361644062,1.07557461,87978.0,87961.0,0.14537244]
[1769361649304,1.07557461,87976.0,87956.0,1.12843951]
[1769361649616,0.14179499,87971.0,87954.0,0.0003624]
[1769361649839,1.07557461,87968.0,87954.0,0.0003624]
[1769361652553,1.19912095,87966.0,87954.0,0.0003624]
[1769361653477,0.17468,87970.0,87954.0,0.0003624]
[1769361653658,0.17468,87970.0,87954.0,0.14573484]
[1769361653864,1.25025461,87970.0,87954.0,0.14573484]
[1769361654079,1.07557461,87970.0,87954.0,0.14573484]
[1769361654279,0.17468,87969.0,87954.0,0.14573484]
[1769361654825,1.25025461,87969.0,87954.0,0.14573484]
[1769361657556,0.01136609,87981.0,87954.0,0.14573484]
[1769361657557,0.04548,87986.0,87960.0,0.0113688]
[1769361657915,0.04548,87986.0,87965.0,1.12843951]
[1769361657916,0.28803236,87985.0,87965.0,1.12843951]
[1769361658070,0.11335236,87984.0,87968.0,0.14537244]
[1769361658255,0.11335236,87984.0,87969.0,0.14537244]
[1769361659811,1.18892697,87984.0,87969.0,0.14537244]
[1769361660008,0.11335236,87983.0,87969.0,0.14537244]
[1769361660781,0.11335236,87983.0,87969.0,0.14551644]
[1769361661147,1.18892697,87983.0,87969.0,0.14551644]
[1769361661321,0.11335236,87982.0,87969.0,0.14551644]
[1769361663578,0.05835236,87981.0,87969.0,0.14551644]
[1769361665410,0.17468,87982.0,87971.0,0.07059697]
[1769361665649,0.17468,87982.0,87973.0,0.07059697]
[1769361666227,0.00014175,87986.0,87973.0,0.07059697]
[1769361666424,0.17468,87984.0,87973.0,0.07059697]
[1769361666672,1.08967356,87983.0,87973.0,0.07059697]
[1769361666848,1.08967356,87983.0,87972.0,0.000144]
[1769361669122,0.17468,87984.0,87973.0,1.13307858]
[1769361669299,0.00014175,87986.0,87972.0,0.07074097]
[1769361669505,0.17468,87985.0,87974.0,0.07059697]
[1769361670476,0.00014175,87986.0,87974.0,0.07059697]
[1769361672252,0.00014175,87986.0,87972.0,0.000144]
[1769361672452,1.08967356,87985.0,87972.0,0.000144]
[1769361674181,0.00014175,87986.0,87974.0,1.20367555]
[1769361677482,0.11377184,87986.0,87974.0,1.20367555]
[1769361677884,0.11377184,87986.0,87972.0,0.000144]
[1769361677885,0.11377184,87986.0,87977.0,1.07932732]
[1769361678084,0.13646366,88004.0,87982.0,0.04760897]
[1769361678289,0.13646366,88004.0,87984.0,0.04760897]
[1769361678290,1.06908265,88002.0,87984.0,0.04760897]
[1769361680138,0.00047239,88004.0,87990.0,0.29640993]
[1769361680294,0.00047239,88004.0,87991.0,0.04760897]
[1769361680984,0.00047239,88004.0,87992.0,0.04760897]
[1769361681455,1.06955504,88004.0,87992.0,0.04760897]
[1769361683763,1.06955504,88004.0,87993.0,1.07932732]
[1769361683764,0.00047239,88004.0,87993.0,1.07932732]
[1769361683901,0.00047239,88004.0,87996.0,0.04760897]
[1769361684101,0.00047239,88004.0,87998.0,1.07932732]
[1769361684402,0.00047239,88004.0,88000.0,0.04760897]
[1769361685147,0.00593293,88013.0,88000.0,0.04760897]
[1769361685293,0.00600269,88013.0,88004.0,0.04760897]
[1769361685492,0.00600269,88013.0,88003.0,1.07932732]
[1769361685714,0.00600269,88013.0,88004.0,0.04760897]
[1769361686329,0.0004,88021.0,88004.0,1.07932732]
[1769361686532,0.0004,88021.0,88010.0,0.29640993]
[1769361686741,0.0004,88021.0,88010.0,0.3440189]